fUSD/lending_fUSD_20240318
["ID","MTS","AMOUNT","RATE_DAILY","PERIOD"]
[319479804,1710799946853,-577.06,0.00024109,2]
[319479805,1710799946862,-772.45,0.00024109,2]
[319479806,1710799946872,-1289.15,0.00024109,2]
[319479807,1710799946881,-500.0,0.00024109,2]
[319479808,1710799946891,-500.0,0.00024109,2]
[319479809,1710799946901,-500.0,0.00024109,2]
[319479810,1710799946911,-1162.86,0.00024109,2]
[319479811,1710799946921,-500.0,0.00024109,2]
[319479812,1710799946932,-539.59,0.00024109,2]
[319479813,1710799946941,-500.0,0.00024109,2]
[319479814,1710799946951,-1284.59,0.00024109,2]
[319479815,1710799946961,-1343.86,0.00024109,2]
[319479816,1710799946971,-2423.47,0.00024109,2]
[319479817,1710799946980,-500.0,0.00024109,2]
[319479818,1710799946990,-790.0,0.00024109,2]
[319479819,1710799947000,-1561.78,0.00024109,2]
[319479820,1710799947010,-2345.93,0.00024109,2]
[319479821,1710799947020,-1543.03,0.00024109,2]
[319479822,1710799947030,-688.89,0.00024109,2]
[319479823,1710799947040,-500.0,0.00024109,2]
[319479824,1710799947050,-500.0,0.00024109,2]
[319479825,1710799947060,-1604.71,0.00024109,2]
[319479826,1710799947071,-779.42,0.00024109,2]
[319479827,1710799947081,-500.0,0.00024109,2]
[319479828,1710799947091,-500.0,0.00024109,2]
[319479829,1710799947101,-1455.91,0.00024109,2]
[319479830,1710799947112,-964.51,0.00024109,2]
[319479831,1710799947121,-500.0,0.00024109,2]
[319479832,1710799947132,-865.84,0.00024109,2]
[319479833,1710799947141,-500.0,0.00024109,2]
[319479834,1710799947151,-1347.47,0.00024109,2]
[319479835,1710799947161,-1883.82,0.00024109,2]
[319479836,1710799947171,-500.0,0.00024109,2]
[319479837,1710799947182,-500.0,0.00024109,2]
[319479838,1710799947191,-500.0,0.00024109,2]
[319479839,1710799947201,-615.15,0.00024109,2]
[319479840,1710799947210,-500.0,0.00024109,2]
[319479841,1710799947219,-743.05,0.00024109,2]
[319479842,1710799947229,-1288.43,0.00024109,2]
[319479843,1710799947239,-532.05,0.00024109,2]
[319479844,1710799947249,-1050.86,0.00024109,2]
[319479845,1710799947258,-568.35,0.00024109,2]
[319479846,1710799947268,-500.0,0.00024109,2]
[319479847,1710799947277,-500.0,0.00024109,2]
[319479848,1710799947483,-287.83607342,0.00024109,2]
[319479849,1710799947496,-500.0,0.00024109,2]
[319479850,1710799947505,-500.0,0.00024109,2]
[319479851,1710799947514,-801.95,0.00024109,2]
[319479852,1710799947524,-3692.13,0.00024109,2]
[319479853,1710799947533,-1387.79,0.00024109,2]
[319479854,1710799947542,-1021.88,0.00024109,2]
[319479855,1710799947551,-1736.34,0.00024109,2]
[319479856,1710799947561,-500.0,0.00024109,2]
[319479857,1710799947570,-2682.4,0.00024109,2]
[319479858,1710799947581,-722.05,0.00024109,2]
[319479859,1710799947592,-917.72,0.00024109,2]
[319479860,1710799947601,-500.0,0.00024109,2]
[319479861,1710799947610,-1582.16,0.00024109,2]
[319479862,1710799947620,-500.0,0.00024109,2]
[319479863,1710799947631,-500.0,0.00024109,2]
[319479864,1710799947640,-500.0,0.00024109,2]
[319479865,1710799947650,-399.21006815,0.00024109,2]
[319479866,1710799947659,-500.0,0.00024109,2]
[319479867,1710799947670,-500.0,0.00024109,2]
[319479868,1710799947681,-500.0,0.00024109,2]
[319479869,1710799947690,-500.0,0.00024109,2]
[319479870,1710799947700,-899.67,0.00024109,2]
[319479871,1710799947710,-500.0,0.00024109,2]
[319479872,1710799947719,-500.0,0.00024109,2]
[319479873,1710799947728,-1197.99,0.00024109,2]
[319479874,1710799947738,-2570.57,0.00024109,2]
[319479875,1710799947748,-832.49,0.00024109,2]
[319479876,1710799947758,-500.0,0.00024109,2]
[319479877,1710799947768,-500.0,0.00024109,2]
[319479878,1710799947777,-500.0,0.00024109,2]
[319479879,1710799947787,-209.39134453,0.00024109,2]
[319479880,1710799947797,-2336.68,0.00024109,2]
[319479881,1710799947807,-714.57,0.00024109,2]
[319479882,1710799947816,-572.14,0.00024109,2]
[319479883,1710799947826,-500.0,0.00024109,2]
[319479884,1710799947836,-570.84,0.00024109,2]
[319479885,1710799947846,-500.0,0.00024109,2]
[319479886,1710799947856,-1267.22,0.00024109,2]
[319479887,1710799947866,-500.0,0.00024109,2]
[319479888,1710799947876,-1986.27,0.00024109,2]
[319479889,1710799947885,-713.53,0.00024109,2]
[319479890,1710799947894,-500.0,0.00024109,2]
[319479891,1710799947904,-500.0,0.00024109,2]
[319479892,1710799947913,-1031.5,0.00024109,2]
[319479893,1710799947923,-500.0,0.00024109,2]
[319479894,1710799947934,-1487.73,0.00024109,2]
[319479895,1710799947944,-500.0,0.00024109,2]
[319479896,1710799947953,-1462.06,0.00024109,2]
[319479897,1710799947963,-2831.64,0.00024109,2]
[319479898,1710799947973,-500.0,0.00024109,2]
[319479899,1710799947982,-1113.91,0.00024109,2]
[319479900,1710799947991,-662.67,0.00024109,2]
[319479901,1710799948000,-1374.98,0.00024109,2]
[319479902,1710799948010,-500.0,0.00024109,2]
[319479903,1710799948018,-2453.88,0.00024109,2]
[319479904,1710799948028,-584.72,0.00024109,2]
[319479905,1710799948037,-500.0,0.00024109,2]
[319479906,1710799948046,-1349.99,0.00024109,2]
[319479907,1710799948055,-1580.15,0.00024109,2]
[319479908,1710799948065,-1466.21,0.00024109,2]
[319479909,1710799948074,-500.0,0.00024109,2]
[319479910,1710799948083,-500.0,0.00024109,2]
[319479911,1710799948092,-1118.72,0.00024109,2]
[319479912,1710799948101,-500.0,0.00024109,2]
[319479913,1710799948110,-606.91,0.00024109,2]
[319479914,1710799948119,-500.0,0.00024109,2]
[319479915,1710799948129,-1958.41,0.00024109,2]
[319479916,1710799948138,-605.4,0.00024109,2]
[319479917,1710799948147,-500.0,0.00024109,2]
[319479918,1710799948156,-500.0,0.00024109,2]
[319479919,1710799948165,-500.0,0.00024109,2]
[319479920,1710799948174,-500.0,0.00024109,2]
[319479921,1710799948184,-942.42,0.00024109,2]
[319479922,1710799948193,-569.15,0.00024109,2]
[319479923,1710799948202,-1400.41,0.00024109,2]
[319479924,1710799948211,-500.0,0.00024109,2]
[319479925,1710799948221,-941.12,0.00024109,2]
[319479926,1710799948231,-500.0,0.00024109,2]
[319479927,1710799948240,-500.0,0.00024109,2]
[319479928,1710799948250,-500.0,0.00024109,2]
[319479929,1710799948259,-500.0,0.00024109,2]
[319479930,1710799948268,-1781.44,0.00024109,2]
[319479931,1710799948277,-500.0,0.00024109,2]
[319479932,1710799948286,-713.68,0.00024109,2]
[319479933,1710799948296,-1912.95,0.00024109,2]
[319479934,1710799948306,-1203.57,0.00024109,2]
[319479935,1710799948315,-905.72,0.00024109,2]
[319479936,1710799948325,-500.0,0.00024109,2]
[319479937,1710799948334,-500.0,0.00024109,2]
[319479938,1710799948345,-4393.41,0.00024109,2]
[319479939,1710799948355,-2303.75,0.00024109,2]
[319479940,1710799948364,-500.0,0.00024109,2]
[319479941,1710799948374,-1144.14,0.00024109,2]
[319479942,1710799948384,-1401.22,0.00024109,2]
[319479943,1710799948396,-1229.49,0.00024109,2]
[319479944,1710799948406,-511.29,0.00024109,2]
[319479945,1710799948415,-500.0,0.00024109,2]
[319479946,1710799948424,-1432.28,0.00024109,2]
[319479947,1710799948435,-500.0,0.00024109,2]
[319479948,1710799948444,-516.82,0.00024109,2]
[319479949,1710799948453,-500.0,0.00024109,2]
[319479950,1710799948462,-1305.33,0.00024109,2]
[319479951,1710799948472,-581.47,0.00024109,2]
[319479952,1710799948482,-678.53,0.00024109,2]
[319479953,1710799948491,-500.0,0.00024109,2]
[319479954,1710799948501,-1022.21,0.00024109,2]
[319479955,1710799948510,-737.52,0.00024109,2]
[319479956,1710799948520,-500.0,0.00024109,2]
[319479957,1710799948529,-1654.91,0.00024109,2]
[319479958,1710799948538,-500.0,0.00024109,2]
[319479959,1710799948547,-745.31,0.00024109,2]
[319479960,1710799948556,-500.0,0.00024109,2]
[319479961,1710799948566,-7202.93,0.00024109,2]
[319479962,1710799948576,-20689.66,0.00024109,2]
[319479963,1710799948588,-2992.02,0.00024109,2]
[319479964,1710799948598,-500.0,0.00024109,2]
[319479965,1710799948608,-638.22,0.00024109,2]
[319479966,1710799948619,-1157.8,0.00024109,2]
[319479967,1710799948629,-1110.24,0.00024109,2]
[319479968,1710799948640,-1088.66,0.00024109,2]
[319479969,1710799948649,-500.0,0.00024109,2]
[319479970,1710799948658,-1090.38,0.00024109,2]
[319479971,1710799948669,-1367.92,0.00024109,2]
[319479972,1710799948679,-500.0,0.00024109,2]
[319479973,1710799948689,-8212.3,0.00024109,2]
[319479974,1710799948698,-500.0,0.00024109,2]
[319479975,1710799948707,-1716.46,0.00024109,2]
[319479976,1710799948716,-500.0,0.00024109,2]
[319479977,1710799948726,-1412.21,0.00024109,2]
[319479978,1710799948735,-500.0,0.00024109,2]
[319479979,1710799948744,-605.07,0.00024109,2]
[319479980,1710799948753,-622.92,0.00024109,2]
[319479981,1710799948762,-738.47,0.00024109,2]
[319479982,1710799948771,-6843.13,0.00024109,2]
[319479983,1710799948780,-642.05,0.00024109,2]
[319479984,1710799948789,-2375.9,0.00024109,2]
[319479985,1710799948798,-1814.94,0.00024109,2]
[319479986,1710799948807,-720.26,0.00024109,2]
[319479987,1710799948815,-500.0,0.00024109,2]
[319479988,1710799948824,-500.0,0.00024109,2]
[319479989,1710799948834,-7701.15,0.00024109,2]
[319479990,1710799948843,-2621.03,0.00024109,2]
[319479991,1710799948852,-70618.05,0.00024109,2]
[319479992,1710799948861,-1283.55,0.00024109,2]
[319479993,1710799948870,-867.51,0.00024109,2]
[319479994,1710799948879,-395.15122583,0.00024109,2]
[319479995,1710799948889,-933.88,0.00024109,2]
[319479996,1710799948898,-651.4,0.00024109,2]
[319479997,1710799948908,-1968.24,0.00024109,2]
[319479998,1710799948917,-1507.28,0.00024109,2]
[319479999,1710799948928,-15625.12,0.00024109,2]
[319480000,1710799948941,-2930.24,0.00024109,2]
[319480001,1710799948964,-500.0,0.00024109,2]
[319480002,1710799948981,-386.07,0.00024109,2]
[319480003,1710799949002,-908.19,0.00024109,2]
[319480004,1710799949019,-500.0,0.00024109,2]
[319480005,1710799949037,-836.99,0.00024109,2]
[319480006,1710799949056,-1649.1,0.00024109,2]
[319480007,1710799949074,-500.0,0.00024109,2]
[319480008,1710799949092,-3638.93,0.00024109,2]
[319480009,1710799949109,-1000.59,0.00024109,2]
[319480010,1710799949130,-500.0,0.00024109,2]
[319480011,1710799949149,-500.0,0.00024109,2]
[319480012,1710799949162,-2240.25,0.00024109,2]
[319480013,1710799949179,-500.0,0.00024109,2]
[319480014,1710799949197,-500.0,0.00024109,2]
[319480015,1710799949211,-500.0,0.00024109,2]
[319480016,1710799949229,-876.56,0.00024109,2]
[319480017,1710799949245,-1827.91,0.00024109,2]
[319480018,1710799949260,-500.0,0.00024109,2]
[319480019,1710799949276,-2226.67,0.00024109,2]
[319480020,1710799949291,-4659.24,0.00024109,2]
[319480021,1710799949306,-500.0,0.00024109,2]
[319480022,1710799949322,-500.0,0.00024109,2]
[319480023,1710799949338,-500.0,0.00024109,2]
[319480024,1710799949352,-3729.26,0.00024109,2]
[319480025,1710799949369,-500.0,0.00024109,2]
[319480026,1710799949384,-3606.56,0.00024109,2]
[319480027,1710799949399,-500.0,0.00024109,2]
[319480028,1710799949415,-1207.02,0.00024109,2]
[319480029,1710799949430,-963.32,0.00024109,2]
[319480030,1710799949445,-28470.72,0.00024109,2]
[319480031,1710799949461,-2980.27,0.00024109,2]
[319480032,1710799949476,-1000.56,0.00024109,2]
[319480033,1710799949492,-500.0,0.00024109,2]
[319480034,1710799949507,-500.0,0.00024109,2]
[319480035,1710799949522,-1014.54,0.00024109,2]
[319480036,1710799949536,-500.0,0.00024109,2]
[319480037,1710799949551,-1007.55,0.00024109,2]
[319480038,1710799949566,-500.0,0.00024109,2]
[319480039,1710799949581,-12991.16,0.00024109,2]
[319480040,1710799949600,-825.64,0.00024109,2]
[319480041,1710799949616,-1967.21,0.00024109,2]
[319480042,1710799949631,-500.0,0.00024109,2]
[319480043,1710799949646,-500.0,0.00024109,2]
[319480044,1710799949661,-989.42,0.00024109,2]
[319480045,1710799949678,-3061.78,0.00024109,2]
[319480046,1710799949693,-3350.06,0.00024109,2]
[319480047,1710799949708,-500.0,0.00024109,2]
[319480048,1710799949724,-1418.83,0.00024109,2]
[319480049,1710799949738,-578.72,0.00024109,2]
[319480050,1710799949752,-500.0,0.00024109,2]
[319480051,1710799949768,-1283.92,0.00024109,2]
[319480052,1710799949783,-1017.47,0.00024109,2]
[319480053,1710799949798,-500.0,0.00024109,2]
[319480054,1710799949814,-500.0,0.00024109,2]
[319480055,1710799949829,-793.34,0.00024109,2]
[319480056,1710799949844,-500.0,0.00024109,2]
[319480057,1710799949860,-544.38,0.00024109,2]
[319480058,1710799949873,-1383.54,0.00024109,2]
[319480059,1710799949888,-3058.85,0.00024109,2]
[319480060,1710799949903,-500.0,0.00024109,2]
[319480061,1710799949918,-4863.68,0.00024109,2]
[319480062,1710799949933,-500.0,0.00024109,2]
[319480063,1710799949948,-3420.67,0.00024109,2]
[319480064,1710799949963,-1467.98,0.00024109,2]
[319480065,1710799949977,-500.0,0.00024109,2]
[319480066,1710799949991,-500.0,0.00024109,2]
[319480067,1710799950005,-909.74,0.00024109,2]
[319480068,1710799950019,-500.0,0.00024109,2]
[319480069,1710799950035,-500.0,0.00024109,2]
[319480070,1710799950050,-616.14,0.00024109,2]
[319480071,1710799950065,-500.0,0.00024109,2]
[319480072,1710799950079,-1472.05,0.00024109,2]
[319480073,1710799950093,-1391.49,0.00024109,2]
[319480074,1710799950107,-500.0,0.00024109,2]
[319480075,1710799950122,-1026.28,0.00024109,2]
[319480076,1710799950136,-500.0,0.00024109,2]
[319480077,1710799950151,-501.4,0.00024109,2]
[319480078,1710799950165,-500.0,0.00024109,2]
[319480079,1710799950180,-1044.22,0.00024109,2]
[319480080,1710799950195,-736.5,0.00024109,2]
[319480081,1710799950210,-455.5396581,0.00024109,2]
[319480082,1710799950226,-500.0,0.00024109,2]
[319480083,1710799950239,-1726.54,0.00024109,2]
[319480084,1710799950254,-2302.64,0.00024109,2]
[319480085,1710799950268,-1165.44,0.00024109,2]
[319480086,1710799950282,-12189.86,0.00024109,2]
[319480087,1710799950297,-1530.51,0.00024109,2]
[319480088,1710799950311,-1375.05,0.00024109,2]
[319480089,1710799950325,-1316.33,0.00024109,2]
[319480090,1710799950340,-728.8,0.00024109,2]
[319480091,1710799950354,-515.52,0.00024109,2]
[319480092,1710799950368,-1294.68,0.00024109,2]
[319480093,1710799950382,-500.0,0.00024109,2]
[319480094,1710799950397,-500.0,0.00024109,2]
[319480095,1710799950411,-1545.51,0.00024109,2]
[319480096,1710799950425,-1925.65,0.00024109,2]
[319480097,1710799950440,-500.0,0.00024109,2]
[319480098,1710799950454,-6062.83,0.00024109,2]
[319480099,1710799950469,-1677.75,0.00024109,2]
[319480100,1710799950484,-515.12678233,0.00024109,2]
[319480101,1710799950498,-500.0,0.00024109,2]
[319480102,1710799950512,-630.76,0.00024109,2]
[319480103,1710799950527,-697.84,0.00024109,2]
[319480104,1710799950541,-1539.77,0.00024109,2]
[319480105,1710799950555,-1111.24,0.00024109,2]
[319480106,1710799950569,-500.0,0.00024109,2]
[319480107,1710799950583,-500.0,0.00024109,2]
[319480108,1710799950600,-1154.87,0.00024109,2]
[319480109,1710799950616,-500.0,0.00024109,2]
[319480110,1710799950631,-2083.43,0.00024109,2]
[319480111,1710799950645,-498.73941205,0.00024109,2]
[319480112,1710799950659,-500.0,0.00024109,2]
[319480113,1710799950681,-873.95,0.00024109,2]
[319480114,1710799950695,-572.93,0.00024109,2]
[319480115,1710799950709,-1218.6,0.00024109,2]
[319480116,1710799950724,-500.0,0.00024109,2]
[319480117,1710799950737,-500.0,0.00024109,2]
[319480118,1710799950753,-762.41,0.00024109,2]
[319480119,1710799950769,-805.44,0.00024109,2]
[319480120,1710799950783,-2278.77,0.00024109,2]
[319480121,1710799950797,-2011.92,0.00024109,2]
[319480122,1710799950812,-500.0,0.00024109,2]
[319480123,1710799950827,-2062.21,0.00024109,2]
[319480124,1710799950841,-971.93,0.00024109,2]
[319480125,1710799950856,-500.0,0.00024109,2]
[319480126,1710799950872,-768.87,0.00024109,2]
[319480127,1710799950885,-500.0,0.00024109,2]
[319480128,1710799950899,-1606.59,0.00024109,2]
[319480129,1710799950914,-500.0,0.00024109,2]
[319480130,1710799950929,-1340.16,0.00024109,2]
[319480131,1710799950945,-500.0,0.00024109,2]
[319480132,1710799950960,-1007.76,0.00024109,2]
[319480133,1710799950974,-4162.89,0.00024109,2]
[319480134,1710799950988,-1051.06,0.00024109,2]
[319480135,1710799951002,-500.0,0.00024109,2]
[319480136,1710799951018,-699.3,0.00024109,2]
[319480137,1710799951033,-518.73,0.00024109,2]
[319480138,1710799951047,-1416.75,0.00024109,2]
[319480139,1710799951061,-1220.37,0.00024109,2]
[319480140,1710799951076,-500.0,0.00024109,2]
[319480141,1710799951090,-1475.69,0.00024109,2]
[319480142,1710799951105,-1579.78,0.00024109,2]
[319480143,1710799951119,-960.76,0.00024109,2]
[319480144,1710799951133,-685.26,0.00024109,2]
[319480145,1710799951147,-500.0,0.00024109,2]
[319480146,1710799951161,-500.0,0.00024109,2]
[319480147,1710799951176,-502.81869774,0.00024109,2]
[319480148,1710799951191,-598.24,0.00024109,2]
[319480149,1710799951206,-3689.48,0.00024109,2]
[319480150,1710799951517,-1883.02,0.00024109,2]
[319480151,1710799951533,-500.0,0.00024109,2]
[319480152,1710799951543,-725.93,0.00024109,2]
[319480153,1710799951553,-500.0,0.00024109,2]
[319480154,1710799951563,-500.0,0.00024109,2]
[319480155,1710799951573,-582.85,0.00024109,2]
[319480156,1710799951587,-597.67,0.00024109,2]
[319480157,1710799951597,-945.24,0.00024109,2]
[319480158,1710799951606,-3264.27,0.00024109,2]
[319480159,1710799951615,-1114.59,0.00024109,2]
[319480160,1710799951625,-1101.09,0.00024109,2]
[319480161,1710799951634,-3081.47,0.00024109,2]
[319480162,1710799951644,-1090.35,0.00024109,2]
[319480163,1710799951653,-15199.29,0.00024109,2]
[319480164,1710799951663,-525.35,0.00024109,2]
[319480165,1710799951673,-545.12,0.00024109,2]
[319480166,1710799951684,-524.35,0.00024109,2]
[319480167,1710799951693,-926.2,0.00024109,2]
[319480168,1710799951702,-738.48,0.00024109,2]
[319480169,1710799951712,-500.0,0.00024109,2]
[319480170,1710799951721,-661.43,0.00024109,2]
[319480171,1710799951731,-502.03105797,0.00024109,2]
[319480172,1710799951740,-521.01,0.00024109,2]
[319480173,1710799951749,-2791.36,0.00024109,2]
[319480174,1710799951758,-1479.1,0.00024109,2]
[319480175,1710799951768,-3873.88,0.00024109,2]
[319480176,1710799951777,-500.0,0.00024109,2]
[319480177,1710799951786,-8062.17,0.00024109,2]
[319480178,1710799951795,-500.0,0.00024109,2]
[319480179,1710799951804,-1469.15,0.00024109,2]
[319480180,1710799951814,-1368.38,0.00024109,2]
[319480181,1710799951823,-500.0,0.00024109,2]
[319480182,1710799951833,-578.84,0.00024109,2]
[319480183,1710799951843,-500.0,0.00024109,2]
[319480184,1710799951852,-500.0,0.00024109,2]
[319480185,1710799951861,-500.0,0.00024109,2]
[319480186,1710799951870,-625.58,0.00024109,2]
[319480187,1710799951880,-500.0,0.00024109,2]
[319480188,1710799951889,-659.71,0.00024109,2]
[319480189,1710799951898,-500.0,0.00024109,2]
[319480190,1710799951907,-1165.69,0.00024109,2]
[319480191,1710799951916,-522.17,0.00024109,2]
[319480192,1710799951925,-500.0,0.00024109,2]
[319480193,1710799951935,-547.31,0.00024109,2]
[319480194,1710799951945,-500.0,0.00024109,2]
[319480195,1710799951954,-1931.5,0.00024109,2]
[319480196,1710799951963,-500.0,0.00024109,2]
[319480197,1710799951972,-1852.16,0.00024109,2]
[319480198,1710799951981,-500.0,0.00024109,2]
[319480199,1710799951990,-5194.45,0.00024109,2]
[319480200,1710799951999,-4366.56,0.00024109,2]
[319480201,1710799952010,-2626.87,0.00024109,2]
[319480202,1710799952019,-500.0,0.00024109,2]
[319480203,1710799952028,-4566.9,0.00024109,2]
[319480204,1710799952038,-643.53,0.00024109,2]
[319480205,1710799952047,-1560.19,0.00024109,2]
[319480206,1710799952056,-574.42,0.00024109,2]
[319480207,1710799952065,-7356.66,0.00024109,2]
[319480208,1710799952074,-500.0,0.00024109,2]
[319480209,1710799952084,-2335.37,0.00024109,2]
[319480210,1710799952094,-1433.97,0.00024109,2]
[319480211,1710799952103,-331.12158922,0.00024109,2]
[319480212,1710799952113,-1302.8,0.00024109,2]
[319480213,1710799952122,-12149.23,0.00024109,2]
[319480214,1710799952131,-500.0,0.00024109,2]
[319480215,1710799952140,-596.59,0.00024109,2]
[319480216,1710799952149,-976.06,0.00024109,2]
[319480217,1710799952159,-543.94049246,0.00024109,2]
[319480218,1710799952168,-773.37,0.00024109,2]
[319480219,1710799952178,-575.4661436,0.00024109,2]
[319480220,1710799952187,-500.0,0.00024109,2]
[319480221,1710799952196,-500.0,0.00024109,2]
[319480222,1710799952206,-12163.47,0.00024109,2]
[319480223,1710799952215,-500.0,0.00024109,2]
[319480224,1710799952225,-500.0,0.00024109,2]
[319480225,1710799952234,-1666.88,0.00024109,2]
[319480226,1710799952244,-1040.95,0.00024109,2]
[319480227,1710799952253,-4014.74,0.00024109,2]
[319480228,1710799952263,-676.8,0.00024109,2]
[319480229,1710799952272,-500.0,0.00024109,2]
[319480230,1710799952281,-2937.18,0.00024109,2]
[319480231,1710799952291,-798.37,0.00024109,2]
[319480232,1710799952300,-500.0,0.00024109,2]
[319480233,1710799952310,-514.53,0.00024109,2]
[319480234,1710799952319,-630.18,0.00024109,2]
[319480235,1710799952328,-1092.32,0.00024109,2]
[319480236,1710799952337,-500.0,0.00024109,2]
[319480237,1710799952347,-4002.95,0.00024109,2]
[319480238,1710799952356,-500.0,0.00024109,2]
[319480239,1710799952365,-3032.32,0.00024109,2]
[319480240,1710799952374,-1825.34,0.00024109,2]
[319480241,1710799952384,-713.44,0.00024109,2]
[319480242,1710799952394,-2538.34,0.00024109,2]
[319480243,1710799952403,-500.0,0.00024109,2]
[319480244,1710799952413,-500.0,0.00024109,2]
[319480245,1710799952422,-1704.18,0.00024109,2]
[319480246,1710799952433,-2264.59,0.00024109,2]
[319480247,1710799952443,-500.0,0.00024109,2]
[319480248,1710799952452,-500.0,0.00024109,2]
[319480249,1710799952462,-999.91,0.00024109,2]
[319480250,1710799952471,-500.0,0.00024109,2]
[319480251,1710799952480,-1455.99,0.00024109,2]
[319480252,1710799952489,-500.0,0.00024109,2]
[319480253,1710799952498,-1138.58,0.00024109,2]
[319480254,1710799952508,-951.86,0.00024109,2]
[319480255,1710799952517,-780.67,0.00024109,2]
[319480256,1710799952526,-1309.57,0.00024109,2]
[319480257,1710799952536,-500.0,0.00024109,2]
[319480258,1710799952545,-500.0,0.00024109,2]
[319480259,1710799952555,-500.0,0.00024109,2]
[319480260,1710799952606,-500.0,0.00024109,2]
[319480261,1710799952619,-534.24989579,0.00024109,2]
[319480262,1710799952629,-4539.82,0.00024109,2]
[319480263,1710799952639,-500.0,0.00024109,2]
[319480264,1710799952648,-4994.79,0.00024109,2]
[319480265,1710799952658,-1485.77,0.00024109,2]
[319480266,1710799952667,-849.91,0.00024109,2]
[319480267,1710799952677,-7034.98,0.00024109,2]
[319480268,1710799952688,-1794.57,0.00024109,2]
[319480269,1710799952697,-500.0,0.00024109,2]
[319480270,1710799952707,-750.9,0.00024109,2]
[319480271,1710799952717,-2385.09,0.00024109,2]
[319480272,1710799952727,-500.0,0.00024109,2]
[319480273,1710799952736,-500.0,0.00024109,2]
[319480274,1710799952745,-609.27843518,0.00024109,2]
[319480275,1710799952754,-1615.86,0.00024109,2]
[319480276,1710799952763,-6038.49,0.00024109,2]
[319480277,1710799952772,-1135.58,0.00024109,2]
[319480278,1710799952781,-979.41,0.00024109,2]
[319480279,1710799952790,-6456.64,0.00024109,2]
[319480280,1710799952799,-942.12,0.00024109,2]
[319480281,1710799952809,-1504.81,0.00024109,2]
[319480282,1710799952819,-500.0,0.00024109,2]
[319480283,1710799952828,-500.0,0.00024109,2]
[319480284,1710799952837,-854.48,0.00024109,2]
[319480285,1710799952846,-508.22,0.00024109,2]
[319480286,1710799952855,-662.67,0.00024109,2]
[319480287,1710799952865,-2520.23,0.00024109,2]
[319480288,1710799952874,-40338.6,0.00024109,2]
[319480289,1710799952883,-1192.63,0.00024109,2]
[319480290,1710799952892,-2259.16,0.00024109,2]
[319480291,1710799952901,-1120.6,0.00024109,2]
[319480292,1710799952910,-4121.83,0.00024109,2]
[319480293,1710799952921,-2157.68,0.00024109,2]
[319480294,1710799952931,-500.0,0.00024109,2]
[319480295,1710799952941,-2358.27,0.00024109,2]
[319480296,1710799952950,-500.0,0.00024109,2]
[319480297,1710799952959,-6231.23,0.00024109,2]
[319480298,1710799952968,-150.95,0.0002411,2]
[319480299,1710799952977,-215.0,0.0002411,2]
[319480300,1710799952987,-214.0,0.0002411,2]
[319480301,1710799952996,-204.0,0.0002411,2]
[319480302,1710799953005,-46997.32540233,0.0002415,2]
[319480303,1710799953013,-432.0,0.00024164,2]